bitfinex-derivatives/quotes_ETHF0:USTF0_20250404
["timestamp","ask_amount","ask_price","bid_price","bid_amount"]
[1743794908339,3.07318,1812.8,1812.7,3.2078]
[1743794908738,1.9695,1812.8,1812.7,3.2078]
[1743794909238,3.07318,1812.8,1812.7,3.2078]
[1743794909945,1.9695,1812.8,1812.7,4.31154]
[1743794910845,3.07318,1812.8,1812.6,41.90376]
[1743794911038,6.90418,1812.8,1812.6,45.11159]
[1743794911239,2.0683,1812.7,1812.6,45.11159]
[1743794912047,3.831,1812.8,1812.7,1.10374]
[1743794912345,2.07656902,1812.9,1812.7,2.0798]
[1743794912540,3.18023902,1812.9,1812.7,2.0798]
[1743794912741,2.07656902,1812.9,1812.8,1.10368]
[1743794912938,3.18018902,1812.9,1812.8,1.10368]
[1743794913146,2.07656902,1812.9,1812.8,1.10368]
[1743794914148,2.07656902,1812.9,1812.8,4.31148]
[1743794915051,3.18018902,1812.9,1812.8,1.10368]
[1743794915254,1.10374,1812.7,1812.6,40.8]
[1743794915450,3.831,1812.7,1812.6,1.10379]
[1743794915652,4.93479,1812.7,1812.6,1.10379]
[1743794915854,1.10386,1812.5,1812.4,1.10389]
[1743794916056,5.8746,1812.6,1812.3,1.10396]
[1743794916252,1.10394,1812.4,1812.3,1.10396]
[1743794916658,1.994,1812.5,1812.4,1.10392]
[1743794916857,1.994,1812.5,1812.4,4.31172]
[1743794917058,2.5244,1812.6,1812.4,3.2078]
[1743794917358,4.93474,1812.7,1812.6,1.1038]
[1743794917551,1.10374,1812.7,1812.6,1.1038]
[1743794917960,1.9602,1812.7,1812.6,1.1038]
[1743794919458,1.935,1812.8,1812.7,1.10374]
[1743794919659,1.935,1812.8,1812.7,3.06984]
[1743794920052,2.0237,1812.8,1812.7,3.06984]
[1743794920256,1.91646902,1812.9,1812.8,1.10368]
[1743794920456,0.00826902,1812.9,1812.8,6.27758]
[1743794920655,0.00826902,1812.9,1812.8,8.77758]
[1743794921063,0.00826902,1812.9,1812.8,10.79538]
[1743794921957,0.00826902,1812.9,1812.8,11.50517406]
[1743794922754,0.00826902,1812.9,1812.8,12.25742675]
[1743794922956,0.00826902,1812.9,1812.8,11.50517406]
[1743794923256,0.00826902,1812.9,1812.8,12.25745837]
[1743794923457,9.02e-06,1812.9,1812.8,18.12745837]
[1743794924161,2.0164,1813.6,1813.5,1.10325]
[1743794924459,3.20403,1813.7,1813.6,1.10319]
[1743794924664,3.20403,1813.7,1813.6,41.90319]
[1743794925056,1.10331,1813.5,1813.4,1.10329]
[1743794925264,1.10331,1813.4,1813.3,4.31114]
[1743794925462,3.11971,1813.4,1813.3,4.31940902]
[1743794925765,3.11971,1813.4,1813.3,44.01606902]
[1743794926264,5.09841,1813.4,1813.3,1.11164902]
[1743794926961,5.09841,1813.4,1813.3,0.00826902]
[1743794927561,5.09841,1813.4,1813.3,1.11164902]
[1743794927763,5.09841,1813.4,1813.3,0.00826902]
[1743794928068,5.09841,1813.4,1813.0,4.31131]
[1743794928069,9.2534,1813.4,1813.0,4.31131]
[1743794928361,5.8077,1813.3,1813.0,3.2078]
[1743794928665,1.1035,1813.1,1813.0,4.31136]
[1743794928858,3.0822,1813.2,1813.1,1.1035]
[1743794929559,3.08218,1813.2,1813.0,4.31134]
[1743794929765,5.0344,1813.1,1813.0,3.2078]
[1743794930261,5.0344,1813.1,1812.9,1.11188902]
[1743794930464,5.0344,1813.1,1812.9,0.00826902]
[1743794930465,6.89546,1813.0,1812.9,0.00826902]
[1743794930656,8.82016,1813.0,1812.9,0.00826902]
[1743794931467,8.82016,1813.0,1812.9,1.11188902]
[1743794931468,7.7166,1813.0,1812.9,1.11188902]
[1743794931858,7.7166,1813.0,1812.9,4.31968902]
[1743794932055,3.8876,1813.0,1812.9,4.31968902]
[1743794933168,5.48435,1813.4,1813.2,1.10338]
[1743794933366,5.10728,1813.3,1813.2,1.10338]
[1743794933559,4.0039,1813.3,1813.2,41.90338]
[1743794934467,5.10728,1813.3,1813.2,40.8]
[1743794934861,1.10351,1813.1,1812.9,1.11186902]
[1743794935168,1.9697,1813.0,1812.9,1.11186902]
[1743794935468,1.9697,1813.0,1812.9,41.91186902]
[1743794935655,3.829,1813.2,1812.9,40.80826902]
[1743794935863,1.1035,1813.1,1813.0,6.39763]
[1743794936159,1.9697,1813.1,1813.0,6.39763]
[1743794936356,3.08742,1813.3,1813.0,5.2941]
[1743794936561,3.07314,1813.2,1813.1,3.1898]
[1743794936958,1.9697,1813.2,1813.1,3.1898]
[1743794937363,3.07314,1813.2,1813.1,3.1898]
[1743794937569,1.9697,1813.2,1813.1,3.1898]
[1743794938667,1.984,1813.3,1813.2,1.10344]
[1743794938968,1.984,1813.3,1813.2,6.40594]
[1743794939469,3.9615,1813.3,1813.2,6.40594]
[1743794939670,3.9615,1813.3,1813.2,3.19814]
[1743794939871,3.9615,1813.3,1813.2,6.40594]
[1743794940068,5.06488,1813.3,1813.2,3.19814]
[1743794940270,5.06488,1813.3,1812.9,40.80826902]
[1743794940271,1.10356,1813.0,1812.9,0.00826902]
[1743794940765,5.8065,1813.2,1813.1,1.1035]
[1743794940966,1.984,1813.3,1813.1,1.1035]
[1743794941169,1.10351,1813.1,1813.0,1.10351]
[1743794941473,1.10354,1813.1,1813.0,1.10354]
[1743794942171,1.984,1813.3,1812.9,0.00826902]
[1743794942372,1.10347,1813.2,1813.1,1.10349]
[1743794942965,1.1035,1813.1,1813.0,1.10356]
[1743794943573,1.1035,1813.1,1812.9,0.00826902]
[1743794943574,1.10356,1813.0,1812.9,0.00826902]
[1743794943768,3.18166,1813.0,1812.9,0.00826902]
[1743794943968,5.68166,1813.0,1812.9,0.00826902]
[1743794944370,2.0781,1813.0,1812.9,1.11188902]
[1743794945667,2.0781,1813.0,1812.9,4.31968902]
[1743794945872,6.91541,1813.3,1813.0,2.7589]
[1743794946074,7.7727,1813.3,1813.2,1.10344]
[1743794946471,7.7727,1813.3,1813.0,1.9179]
[1743794946671,7.7727,1813.3,1813.0,3.02144]
[1743794946875,7.7727,1813.3,1813.1,1.1035]
[1743794946876,1.10347,1813.2,1813.1,1.1035]
[1743794947170,1.1035,1813.1,1813.0,6.22923]
[1743794947363,10.53115,1813.3,1813.0,6.22923]
[1743794947564,1.10345,1813.2,1813.0,5.1257]
[1743794947770,1.1035,1813.1,1813.0,1.10351]
[1743794947971,1.1035,1813.1,1812.9,1.11184902]
[1743794948269,3.2078,1813.2,1812.9,0.00826902]
[1743794948569,1.10356,1813.0,1812.9,1.11188902]
[1743794948874,1.10356,1813.0,1812.9,0.00826902]
[1743794949573,4.93156,1813.0,1812.9,0.00826902]
[1743794950874,10.63936,1813.0,1812.9,0.00826902]
[1743794952079,1.1038,1812.6,1812.5,5.87]
[1743794952274,1.10392,1812.4,1812.3,42.8798]
[1743794952475,1.10392,1812.4,1812.3,40.8]
[1743794952779,1.10409,1812.2,1812.0,6.39173]
[1743794952979,3.08583,1812.3,1812.1,1.10411]
[1743794953174,1.99006902,1812.3,1812.2,3.2078]
[1743794953373,1.10405,1812.2,1812.0,42.8798]
[1743794953573,1.10405,1812.2,1812.1,4.31188]
[1743794953775,1.10405,1812.2,1812.1,1.9515]
[1743794953976,1.10411,1812.1,1811.9,1.11244902]
[1743794954173,1.10417,1812.0,1811.9,1.95976902]
[1743794954475,3.19617,1812.0,1811.9,0.00826902]
[1743794954783,7.02417,1812.0,1811.9,0.00826902]
[1743794955277,2.76066,1811.9,1811.4,6.26379]
[1743794955478,2.0881,1811.9,1811.6,3.2078]
[1743794955675,1.10441,1811.6,1811.5,42.7515]
[1743794956076,1.10441,1811.6,1811.5,45.9593]
[1743794956281,1.9298,1811.8,1811.5,47.06374]
[1743794956282,1.10438,1811.7,1811.5,47.06374]
[1743794956489,3.23481,1811.6,1811.5,42.7515]
[1743794956975,3.23481,1811.6,1811.5,45.9593]
[1743794957171,3.78761001,1811.6,1811.5,44.0078]
[1743794957376,5.35761,1811.6,1811.5,44.0078]
[1743794957882,5.91041001,1811.6,1811.5,3.2078]
[1743794958072,5.35761,1811.6,1811.5,3.2078]
[1743794958270,5.91041001,1811.6,1811.5,3.2078]
[1743794958477,5.35761,1811.6,1811.5,3.2078]
[1743794958977,5.91041001,1811.6,1811.5,3.2078]
[1743794959481,5.35761,1811.6,1811.5,3.2078]
[1743794959682,5.91041001,1811.6,1811.5,3.2078]
[1743794959882,5.35761,1811.6,1811.5,3.2078]
[1743794960284,1.10433,1811.8,1811.5,3.2078]
[1743794960487,1.10435,1811.7,1811.6,2.0325]
[1743794960783,1.10435,1811.7,1811.6,43.93691]
[1743794960979,1.10435,1811.7,1811.6,42.8325]
[1743794961679,1.10435,1811.7,1811.6,40.8]
[1743794962782,2.1193,1811.8,1811.6,40.8]
[1743794962986,2.1193,1811.8,1811.6,42.8918]
[1743794963382,3.22359,1811.8,1811.7,2.0918]
[1743794963687,1.10435,1811.7,1811.6,40.8]
[1743794963889,3.35005,1811.7,1811.6,40.8]
[1743794964388,2.2457,1811.7,1811.6,41.90441]
[1743794964588,2.2457,1811.9,1811.8,1.10429]
[1743794965287,2.1735,1812.0,1811.9,1.10423]
[1743794965488,2.7255,1812.0,1811.9,4.31203]
[1743794965784,3.82967,1812.0,1811.9,3.2078]
[1743794965993,1.10423,1811.9,1811.8,2.2028]
[1743794966183,2.2355,1811.9,1811.8,3.30709]
[1743794966683,2.1735,1812.0,1811.9,1.10423]
[1743794966885,3.33964,1812.1,1812.0,1.10417]
[1743794967080,2.2355,1812.1,1811.9,5.4106]
[1743794967285,3.33963,1812.1,1812.0,1.10417]
[1743794967489,2.2355,1812.1,1812.0,3.30697]
[1743794967686,3.33961,1812.1,1812.0,2.2028]
[1743794967890,2.2355,1812.1,1811.9,1.10422]
[1743794968080,3.33964,1812.1,1811.9,4.31199]
[1743794968277,3.33964,1812.1,1811.9,5.4381]
[1743794968485,3.14247,1812.0,1811.8,1.10425]
[1743794968684,3.14253,1811.9,1811.8,1.10425]
[1743794968884,2.0383,1811.9,1811.8,1.10425]
[1743794969287,8.7018,1812.2,1811.8,2.2303]
[1743794969486,11.84419,1812.2,1812.0,1.10413]
[1743794969691,11.84419,1812.2,1812.1,1.10411]
[1743794970292,8.01519,1812.2,1812.1,1.10411]
[1743794970995,1.10417,1812.0,1811.9,1.10418]
[1743794971190,6.0234,1812.1,1812.0,1.10417]
[1743794971392,2.1944,1812.1,1812.0,1.10417]
[1743794971692,0.00826902,1812.3,1812.2,1.10405]
[1743794971897,0.00826902,1812.3,1812.2,4.31185]
[1743794972197,1.10415,1812.1,1812.0,1.10415]
[1743794972791,3.29855,1812.1,1812.0,1.10415]
[1743794973189,1.1042,1812.0,1811.9,1.10421]
[1743794973394,3.2986,1812.0,1811.9,1.10423]
[1743794973888,2.1944,1812.0,1811.9,1.10423]
[1743794974494,9.37597,1812.2,1812.1,1.10411]
[1743794974701,8.2719,1812.2,1812.1,1.10411]
[1743794974885,9.37595,1812.2,1812.1,1.10411]
[1743794975286,4.4429,1812.2,1812.1,1.10411]
[1743794975698,5.54695,1812.2,1812.1,1.10411]
[1743794975895,6.5961,1812.2,1812.1,4.31191]
[1743794976098,6.5961,1812.2,1812.1,1.10411]
[1743794976293,7.7002,1812.2,1812.1,1.10411]
[1743794977203,7.70018,1812.2,1811.9,2.1266]
[1743794977399,2.1486,1812.1,1812.0,4.31197]
[1743794977902,2.1486,1812.1,1812.0,6.55797]
[1743794978303,3.25271,1812.1,1812.0,1.10417]
[1743794978500,3.25271,1812.1,1811.8,5.96841]
[1743794978501,2.7006,1812.1,1811.8,5.96841]
[1743794978701,7.08179,1812.0,1811.9,1.10423]
[1743794978902,1.10423,1811.9,1811.8,4.31204]
[1743794979105,2.1486,1811.9,1811.8,4.31204]
[1743794979307,3.25283,1811.9,1811.8,1.10424]
[1743794979809,3.25284,1811.9,1811.7,1.10432]
[1743794980008,4.1807,1811.8,1811.7,4.31212]
[1743794980700,4.1807,1811.8,1811.7,6.47682]
[1743794980904,5.28503,1811.8,1811.7,1.10435]
[1743794981203,1.10436,1811.7,1811.5,11.2425]
[1743794981403,7.06936,1811.7,1811.5,6.47692]
[1743794981596,7.06936,1811.7,1811.5,3.26912]
[1743794981800,3.24041,1811.6,1811.5,6.47692]
[1743794982409,3.24041,1811.6,1811.5,1.81833514]
[1743794982603,3.24041,1811.6,1811.5,5.02613514]
[1743794982804,3.24041,1811.6,1811.5,4.31227]
[1743794983006,2.136,1811.6,1811.5,1.10447]
[1743794983206,2.136,1811.6,1811.5,6.47697]
[1743794983404,2.136,1811.6,1811.5,7.19088128]
[1743794984512,3.24041,1811.6,1811.5,7.19088128]
[1743794984704,2.136,1811.6,1811.5,7.19088128]
[1743794984906,3.24041,1811.6,1811.5,1.81838128]
[1743794985106,3.24041,1811.6,1811.5,5.02618128]
[1743794985808,2.136,1811.6,1811.5,5.02618128]
[1743794986005,2.136,1811.6,1811.5,7.14008128]
[1743794986211,2.0599,1812.0,1811.9,1.10423]
[1743794986407,0.552,1812.1,1812.0,1.10417]
[1743794986611,11.57185,1812.2,1812.1,1.10411]
[1743794986905,9.88385,1812.2,1812.1,1.10411]
[1743794987106,8.2278,1812.2,1812.1,1.10411]
[1743794987307,9.33185,1812.2,1812.1,1.10411]
[1743794987708,8.2278,1812.2,1812.1,1.10411]
[1743794987908,9.33185,1812.2,1812.1,1.10411]
[1743794988402,4.3988,1812.2,1812.1,1.10411]
[1743794988599,4.3988,1812.2,1812.1,3.22661]
[1743794989309,5.50285,1812.2,1812.1,3.22661]
[1743794989507,7.6066,1812.2,1811.7,5.4052]
[1743794989707,3.828,1812.1,1811.7,8.10777]
[1743794989910,1.10419,1812.0,1811.9,1.10417]
[1743794990305,1.10425,1811.9,1811.8,1.10425]
[1743794990699,1.10421,1812.0,1811.9,1.10421]
[1743794990908,1.10424,1811.9,1811.8,1.10425]
[1743794991605,4.9322,1812.0,1811.7,3.2078]
[1743794991808,2.0445,1811.8,1811.7,1.10435]
[1743794992111,2.0445,1811.8,1811.7,5.09998833]
[1743794992312,2.0445,1811.8,1811.7,5.1001075]
[1743794992613,2.0445,1811.8,1811.7,5.02526474]
[1743794992811,2.0445,1811.8,1811.7,5.81347974]
[1743794993208,2.0445,1811.8,1811.7,5.02526474]
[1743794993414,3.14879,1811.8,1811.7,5.81359114]
[1743794993612,2.0445,1811.8,1811.7,0.71311474]
[1743794993913,1.10445,1811.6,1811.5,1.10445]
[1743794994111,4.93245,1811.6,1811.5,1.10445]
[1743794994306,3.828,1811.6,1811.4,0.00826902]
[1743794994614,3.828,1811.6,1811.5,1.10447]
[1743794994810,2.1732,1811.7,1811.5,1.10447]
[1743794995009,2.1732,1811.7,1811.4,0.00826902]
[1743794995010,6.0012,1811.7,1811.6,4.31221]
[1743794995208,6.0012,1811.7,1811.6,1.10441]
[1743794996221,6.0012,1811.7,1811.6,4.31221]
[1743794996719,6.5532,1811.7,1811.6,4.31221]
[1743794996914,6.0012,1811.7,1811.6,4.31221]
[1743794997810,7.10555,1811.7,1811.6,4.31221]
[1743794998011,7.10555,1811.7,1811.6,3.2078]
[1743794998605,7.10555,1811.7,1811.6,4.31221]
[1743794998807,7.10555,1811.7,1811.6,3.2078]
[1743794999212,1.10442,1811.6,1811.4,5.41236902]
[1743794999414,2.1732,1811.7,1811.6,1.10441]
[1743794999713,3.14879,1811.8,1811.7,1.10435]
[1743795000110,1.10435,1811.7,1811.6,5.4041]
[1743795000312,1.10447,1811.5,1811.4,0.00826902]
[1743795000508,1.1049,1810.8,1810.7,3.2078]
[1743795000713,3.828,1810.9,1810.7,3.99711079]
[1743795000913,4.93285,1810.9,1810.7,3.2078]
[1743795001114,4.93284,1810.9,1810.8,0.71305693]
[1743795001523,7.15484,1810.9,1810.8,0.71305693]
[1743795001716,1.10491,1810.8,1810.7,1.10495]
[1743795001914,6.60280001,1810.9,1810.7,1.11321902]
[1743795002114,1.1049,1810.8,1810.7,1.11321902]
[1743795002512,6.60280001,1810.9,1810.7,3.21606902]
[1743795002716,6.05,1810.9,1810.8,1.1049]
[1743795003420,6.05,1810.9,1810.7,4.32102902]
[1743795003421,1.1049,1810.8,1810.7,4.32102902]
[1743795003623,7.70768001,1810.9,1810.8,1.1049]
[1743795003817,1.1049,1810.8,1810.7,3.21606902]
[1743795004023,7.70768001,1810.9,1810.7,4.32102902]
[1743795004224,6.05,1810.9,1810.8,1.1049]
[1743795004427,3.15688902,1811.0,1810.9,1.10484]
[1743795004428,0.00826902,1811.0,1810.9,1.10484]
[1743795004722,0.00826902,1811.0,1810.9,4.31264]
[1743795004919,1.11308902,1811.0,1810.8,3.14556]
[1743795005121,1.10484,1810.9,1810.8,3.14556]
[1743795005317,1.10484,1810.9,1810.7,3.21606902]
[1743795005513,1.10484,1810.9,1810.7,4.32100902]
[1743795005718,2.1152,1810.8,1810.7,4.32100902]
[1743795006323,1.10486,1810.9,1810.8,1.10484]
[1743795006528,1.1049,1810.8,1810.7,4.32098902]
[1743795006727,2.1152,1810.9,1810.7,4.32097902]
[1743795007023,4.9339,1810.8,1810.7,0.00826902]
[1743795007223,9.2804,1810.8,1810.7,0.00826902]
[1743795009623,11.3638,1810.8,1810.7,0.00826902]
[1743795010321,10.2589,1810.8,1810.7,1.11322902]
[1743795010521,6.4299,1810.8,1810.7,1.11322902]
[1743795010720,4.3071,1810.8,1810.7,3.32832902]
[1743795011424,4.3071,1810.8,1810.7,1.11322902]
[1743795011924,4.3071,1810.8,1810.7,4.32102902]
[1743795012526,4.3071,1810.8,1810.7,1.11322902]
[1743795012729,5.412,1810.8,1810.7,0.00826902]
[1743795013030,4.3071,1810.8,1810.7,1.11322902]
[1743795013929,4.3071,1810.8,1810.7,4.32102902]
[1743795014521,4.3071,1810.8,1810.7,45.12102902]
[1743795014924,0.00826902,1811.0,1810.9,1.10484]
[1743795015129,0.00826902,1811.0,1810.9,4.31264]
[1743795015832,5.8727,1811.3,1811.2,1.10465]
[1743795016027,7.65824001,1811.6,1811.3,1.10459]
[1743795016229,5.8727,1811.6,1811.5,1.10447]
[1743795016436,3.829,1811.8,1811.7,1.10435]
[1743795016634,4.93329,1811.8,1811.7,1.10435]
[1743795016830,6.0799,1811.8,1811.7,1.10435]
[1743795017031,6.6319,1811.8,1811.7,1.10435]
[1743795017332,0.00826902,1811.9,1811.8,1.10429]
[1743795017531,0.00826902,1811.9,1811.8,4.31209]
[1743795017833,0.00826902,1811.9,1811.8,6.81209]
[1743795018432,0.00826902,1811.9,1811.8,47.61209]
[1743795018934,23.66494997,1812.3,1812.1,1.10411]
[1743795019139,23.66494997,1812.3,1812.2,4.31185]
[1743795019329,25.91584997,1812.3,1812.2,4.31185]
[1743795019537,2.2509,1812.3,1812.2,1.10405]
[1743795019732,3.90693,1812.3,1812.2,1.10405]
[1743795019933,1.10406,1812.2,1812.1,1.10411]
[1743795020135,1.10406,1812.2,1811.8,44.0078]
[1743795020136,1.10411,1812.1,1812.0,4.31195]
[1743795020342,3.39427,1812.2,1812.1,1.10411]
[1743795020542,2.2902,1812.2,1812.1,1.10411]
[1743795021636,0.00826902,1812.4,1812.3,1.10398]
[1743795021846,6.12646902,1812.4,1812.3,1.10398]
[1743795022035,6.12646902,1812.4,1812.3,3.52148]
[1743795022735,6.12646902,1812.4,1812.3,1.10398]
[1743795023336,6.12646902,1812.4,1812.3,3.35248]
[1743795024840,0.00826902,1812.4,1812.3,3.35248]
[1743795026235,0.00826902,1812.4,1812.3,1.10398]
[1743795026740,0.00826902,1812.4,1812.3,3.38918]
[1743795028140,0.00826902,1812.4,1812.2,3.2078]
[1743795028339,0.00826902,1812.4,1812.3,1.10398]
[1743795028545,0.00826902,1812.4,1812.2,4.31183]
[1743795028750,2.31416902,1812.4,1812.2,3.2078]
[1743795028953,5.72551902,1812.4,1812.2,3.2078]
[1743795029149,4.62156902,1812.4,1812.2,4.31183]
[1743795029347,5.72550902,1812.4,1812.2,3.2078]
[1743795029647,0.00826902,1812.4,1812.2,1.10403]
[1743795029839,2.25406902,1812.4,1812.3,1.10398]
[1743795030651,2.25406902,1812.4,1812.2,4.3118]
[1743795030848,3.35799902,1812.4,1812.2,3.2078]
[1743795031049,3.826,1812.3,1812.2,4.3118]
[1743795031249,6.0718,1812.3,1812.2,4.3118]
[1743795031840,6.0718,1812.3,1812.2,4.31185]
[1743795032750,2.2458,1812.3,1812.2,4.31185]
[1743795033057,0.00826902,1812.4,1812.3,1.10398]
[1743795033245,0.00826902,1812.4,1812.3,3.29698]
[1743795033639,0.00826902,1812.4,1812.3,44.09698]
[1743795034049,9.02e-06,1812.4,1812.3,46.59698]
[1743795034652,9.02e-06,1812.4,1812.3,44.09698]
[1743795038043,9.02e-06,1812.4,1812.3,46.59698]
[1743795038247,9.02e-06,1812.4,1812.3,50.42198]
[1743795039053,9.02e-06,1812.4,1812.3,51.1970803]
[1743795039458,9.02e-06,1812.4,1812.3,51.90068102]
[1743795039660,9.02e-06,1812.4,1812.3,51.12558072]
[1743795039857,9.02e-06,1812.4,1812.3,51.90070742]
[1743795041156,9.02e-06,1812.4,1812.3,50.42198]
[1743795041458,9.02e-06,1812.4,1812.3,44.09698]
[1743795041753,1.10398,1812.3,1812.2,3.2078]
[1743795041959,7.60388,1812.3,1812.0,1.10416]
[1743795042159,2.9599,1812.2,1812.1,1.10411]
[1743795042364,7.27175,1812.2,1812.1,1.10411]
[1743795042550,1.10412,1812.1,1812.0,1.10413]
[1743795042753,1.10417,1812.0,1811.9,1.10419]
[1743795042966,1.10417,1812.0,1811.7,44.01606902]
[1743795043256,2.4079,1811.9,1811.8,1.10429]
[1743795045153,2.4079,1811.9,1811.8,2.59569412]
[1743795045355,2.4079,1811.9,1811.8,2.59568179]
[1743795045857,2.3439,1812.3,1812.2,1.10405]
[1743795046858,2.3439,1812.3,1812.2,5.09372869]
[1743795047357,4.5504,1812.3,1812.2,5.80414299]
[1743795047552,2.2065,1812.3,1812.2,5.80414299]
[1743795048558,3.31048,1812.3,1812.2,5.02192623]
[1743795048777,7.13548,1812.3,1812.2,4.31185]
[1743795049461,6.0315,1812.3,1812.2,4.31185]
[1743795050763,7.13548,1812.3,1812.2,4.31185]
[1743795051065,7.13548,1812.3,1812.2,1.10405]
[1743795052165,6.0315,1812.3,1812.2,1.10405]
[1743795053968,6.0315,1812.3,1812.2,1.88603297]
[1743795054271,2.2065,1812.3,1812.2,1.88603297]
[1743795054463,2.2065,1812.3,1812.2,4.9796062]
[1743795056073,2.2065,1812.3,1812.2,2.5959062]
[1743795056467,2.2065,1812.3,1812.2,2.5958588]
[1743795058268,2.2065,1812.3,1812.2,2.59577426]
[1743795058662,9.02e-06,1812.4,1812.2,2.59577426]
[1743795058663,9.02e-06,1812.4,1812.3,1.10398]
[1743795058970,9.02e-06,1812.4,1812.3,8.11020426]
[1743795059463,2.33160902,1812.4,1812.3,8.11020426]
[1743795060164,2.33160902,1812.4,1812.3,1.81385323]
[1743795060370,2.33160902,1812.4,1812.3,2.59545002]
[1743795061167,2.33160902,1812.4,1812.3,1.88536794]
[1743795061766,2.33160902,1812.4,1812.3,1.10398]
[1743795062066,2.33160902,1812.4,1812.3,1.81417975]
[1743795062267,3.43552902,1812.4,1812.3,1.10398]
[1743795062669,1.10398,1812.3,1812.2,4.31179]
[1743795062862,3.30898,1812.3,1812.2,1.10399]
[1743795063076,2.205,1812.3,1812.2,1.10399]
[1743795063271,3.30898,1812.3,1812.2,1.10399]
[1743795063473,2.205,1812.3,1812.2,1.10399]
[1743795064166,3.30898,1812.3,1812.2,1.10399]
[1743795064366,1.10409,1812.2,1812.1,1.10408]
[1743795064562,1.10411,1812.1,1812.0,1.10413]
[1743795064767,3.824,1812.1,1812.0,1.10413]
[1743795064962,6.029,1812.1,1812.0,1.10413]
[1743795065370,1.10418,1812.0,1811.9,1.10419]
[1743795065675,4.6217,1812.0,1811.9,1.10419]
[1743795066062,2.3843,1812.0,1811.9,1.10419]
[1743795066269,2.3843,1812.0,1811.9,1.88714411]
[1743795066468,2.3843,1812.0,1811.9,2.59789073]
[1743795066674,4.7088,1812.2,1812.1,1.10411]
[1743795066976,2.3843,1812.2,1812.1,5.80561073]
[1743795067772,3.48835,1812.2,1812.1,0.71074662]
[1743795067970,2.3843,1812.2,1812.1,1.81485662]
[1743795068172,3.48835,1812.2,1812.1,0.71074662]
[1743795068372,1.10411,1812.1,1812.0,1.10412]
[1743795068568,3.50071,1812.1,1812.0,1.10412]
[1743795068975,2.3966,1812.1,1812.0,1.10412]
[1743795069269,2.3966,1812.1,1812.0,1.81494064]
[1743795069770,2.3966,1812.1,1812.0,2.59806136]
[1743795070175,2.19140902,1812.4,1812.3,1.10398]
[1743795070469,2.19140902,1812.4,1812.3,1.88729942]
[1743795070673,2.19140902,1812.4,1812.3,2.59812006]
[1743795070674,9.02e-06,1812.4,1812.3,2.59812006]
[1743795070870,9.02e-06,1812.4,1812.3,5.09812006]
[1743795071474,9.02e-06,1812.4,1812.3,48.25762006]
[1743795071674,9.02e-06,1812.4,1812.3,48.25669714]
[1743795072178,9.02e-06,1812.4,1812.3,48.25661262]
[1743795072476,9.02e-06,1812.4,1812.3,45.7564628]
[1743795072673,9.02e-06,1812.4,1812.3,45.75639412]
[1743795072971,9.02e-06,1812.4,1812.3,47.47430064]
[1743795073176,9.02e-06,1812.4,1812.3,48.25634018]
[1743795073375,9.02e-06,1812.4,1812.3,48.25617476]
[1743795073576,9.02e-06,1812.4,1812.3,48.25616853]
[1743795074076,9.02e-06,1812.4,1812.3,48.25627184]
[1743795074269,9.02e-06,1812.4,1812.3,48.256143]
[1743795074776,9.02e-06,1812.4,1812.3,48.2560806]
[1743795075076,9.02e-06,1812.4,1812.3,45.7560806]
[1743795075274,9.02e-06,1812.4,1812.3,45.75598822]
[1743795077976,9.02e-06,1812.4,1812.3,43.39648822]
[1743795078372,9.02e-06,1812.4,1812.3,42.61480064]
[1743795078567,2.38390902,1812.4,1812.3,42.61480064]
[1743795078775,2.38390902,1812.4,1812.3,1.81480064]
[1743795079279,2.38390902,1812.4,1812.3,41.90398]
[1743795079583,2.38390902,1812.4,1812.2,1.10401]
[1743795079878,7.1248,1812.3,1812.2,1.10401]
[1743795080081,1.10408,1812.2,1812.1,1.10409]
[1743795080270,3.48798,1812.2,1812.1,1.10409]
[1743795080470,2.3839,1812.2,1812.1,1.10409]
[1743795080675,1.10412,1812.1,1812.0,1.10413]
[1743795080877,3.45112,1812.1,1812.0,1.10413]
[1743795081178,2.347,1812.1,1811.9,45.11198]
[1743795081382,7.12797,1812.0,1811.9,3.2078]
[1743795081980,7.12797,1812.0,1811.9,4.31203]
[1743795081981,6.0238,1812.0,1811.9,4.31203]
[1743795082372,7.128,1812.0,1811.8,1.10424]
[1743795082584,2.1923,1811.9,1811.8,1.10424]
[1743795082781,4.3931,1811.9,1811.8,1.10424]
[1743795083878,2.2008,1811.9,1811.8,5.09367145]
[1743795084081,2.1923,1812.2,1812.1,1.10411]
[1743795084382,9.02e-06,1812.4,1812.3,1.10398]
[1743795084583,9.02e-06,1812.4,1812.3,5.09286152]
[1743795084984,2.32750902,1812.4,1812.3,5.09286152]
[1743795085182,2.32750902,1812.4,1812.3,5.80228569]
[1743795085480,2.32750902,1812.4,1812.3,46.60228569]
[1743795085787,9.02e-06,1812.4,1812.3,46.60228569]
[1743795085980,9.02e-06,1812.4,1812.3,46.6019993]
[1743795086376,9.02e-06,1812.4,1812.3,49.1019993]
[1743795086580,3.42784,1813.1,1812.9,1.10357]
[1743795086781,3.42784,1813.1,1812.6,2.75951]
[1743795086782,2.3243,1813.1,1812.7,1.1037]
[1743795086986,6.5187,1813.0,1812.3,46.76762]
[1743795087191,1.10374,1812.7,1812.6,1.10376]
[1743795087388,8.4974,1812.9,1812.5,3.2078]
[1743795087389,10.8309,1812.9,1812.5,3.2078]
[1743795087591,1.10375,1812.7,1812.6,1.10376]
[1743795088084,7.01616902,1812.9,1812.8,1.10368]
[1743795088285,8.11978902,1812.9,1812.8,1.10368]
[1743795088592,7.01616902,1812.9,1812.8,1.10368]
[1743795089283,7.01616902,1812.9,1812.8,1.81169376]
[1743795090094,0.552,1813.3,1812.9,2.75899]
[1743795090285,2.2511,1813.3,1813.2,1.10344]
[1743795090691,2.2511,1813.3,1813.2,4.31124]
[1743795091792,2.2511,1813.3,1813.2,1.10344]
[1743795091994,0.0055217,1813.4,1813.3,1.10338]